[Event "Live Chess"]
[Site "Chess.com"]
[Date "2024.06.02"]
[Round "-"]
[White "friarnator"]
[Black "Brooms1989"]
[Result "1-0"]
[WhiteElo "2186"]
[BlackElo "1168"]
[TimeControl "300"]
[EndTime "2:19:53 PDT"]
[Termination "friarnator won by resignation"]

1. d4 {[%clk 0:04:58]} 1... Nf6 {[%clk 0:04:58.5]} 2. Nc3 {[%clk 0:04:57.6]}
2... d5 {[%clk 0:04:56.4]} 3. Bf4 {[%clk 0:04:57.2]} 3... c5 {[%clk 0:04:55.5]}
4. e3 {[%clk 0:04:55]} 4... cxd4 {[%clk 0:04:54]} 5. exd4 {[%clk 0:04:51.3]}
5... a6 {[%clk 0:04:53.1]} 6. Bd3 {[%clk 0:04:46.6]} 6... e6 {[%clk 0:04:47.3]}
7. Nf3 {[%clk 0:04:44.8]} 7... Bd6 {[%clk 0:04:44.3]} 8. Ne5 {[%clk 0:04:44]}
8... O-O {[%clk 0:04:39.5]} 9. g4 {[%clk 0:04:39]} 9... Bxe5 {[%clk 0:04:33.5]}
10. Bxe5 {[%clk 0:04:31.9]} 10... Nbd7 {[%clk 0:04:31.6]} 11. Qe2 {[%clk
0:04:22.9]} 11... Nxe5 {[%clk 0:04:28.6]} 12. dxe5 {[%clk 0:04:17.3]} 12... Nd7
{[%clk 0:04:25.2]} 13. O-O-O {[%clk 0:04:16.2]} 13... b5 {[%clk 0:04:18.9]} 14.
f4 {[%clk 0:04:14.5]} 14... b4 {[%clk 0:04:17.1]} 15. Nb1 {[%clk 0:04:12.8]}
15... Qa5 {[%clk 0:04:10.7]} 16. a3 {[%clk 0:04:05.4]} 16... Nc5 {[%clk
0:03:51.8]} 17. f5 {[%clk 0:03:51.9]} 17... Nxd3+ {[%clk 0:03:49.4]} 18. Qxd3
{[%clk 0:03:51.8]} 18... Bd7 {[%clk 0:03:41.1]} 19. f6 {[%clk 0:03:48.5]} 19...
Bb5 {[%clk 0:03:25.6]} 20. Qd2 {[%clk 0:03:19.5]} 20... Rfc8 {[%clk 0:03:08.4]}
21. Qg5 {[%clk 0:03:14.8]} 21... Rxc2+ {[%clk 0:03:00]} 22. Kxc2 {[%clk
0:03:13.5]} 22... Rc8+ {[%clk 0:02:58.8]} 23. Kd2 {[%clk 0:03:05.5]} 23... bxa3+
{[%clk 0:02:54.8]} 24. Ke3 {[%clk 0:03:02.4]} 24... Qb6+ {[%clk 0:02:47.4]} 25.
Kf3 {[%clk 0:02:55.8]} 1-0

[Event "Live Chess"]
[Site "Chess.com"]
[Date "2024.06.02"]
[Round "-"]
[White "Ferrarifan27"]
[Black "Vladyslav2008"]
[Result "0-1"]
[WhiteElo "2130"]
[BlackElo "2268"]
[TimeControl "300"]
[EndTime "2:20:03 PDT"]
[Termination "Vladyslav2008 won by checkmate"]

1. e4 {[%clk 0:04:56]} 1... c5 {[%clk 0:04:58.3]} 2. Nf3 {[%clk 0:04:54]} 2...
d6 {[%clk 0:04:57.3]} 3. d4 {[%clk 0:04:52.3]} 3... cxd4 {[%clk 0:04:56.5]} 4.
Nxd4 {[%clk 0:04:52.2]} 4... Nf6 {[%clk 0:04:55.1]} 5. Nc3 {[%clk 0:04:50.2]}
5... a6 {[%clk 0:04:53.7]} 6. Bg5 {[%clk 0:04:47.8]} 6... e6 {[%clk 0:04:51.3]}
7. f4 {[%clk 0:04:45.4]} 7... Qb6 {[%clk 0:04:49.9]} 8. Qd2 {[%clk 0:04:38.4]}
8... Qxb2 {[%clk 0:04:48.5]} 9. Rb1 {[%clk 0:04:37.3]} 9... Qa3 {[%clk
0:04:47.1]} 10. e5 {[%clk 0:04:35.5]} 10... dxe5 {[%clk 0:04:27.7]} 11. fxe5
{[%clk 0:04:32.6]} 11... Nd5 {[%clk 0:04:22.3]} 12. Nxd5 {[%clk 0:04:26.8]}
12... exd5 {[%clk 0:04:21]} 13. Nb3 {[%clk 0:04:08.8]} 13... Be6 {[%clk
0:04:12]} 14. c3 {[%clk 0:04:03.3]} 14... Nc6 {[%clk 0:04:05.1]} 15. Bf4 {[%clk
0:03:54]} 15... Be7 {[%clk 0:03:59.2]} 16. Bd3 {[%clk 0:03:50.5]} 16... O-O
{[%clk 0:03:56]} 17. O-O {[%clk 0:03:47.8]} 17... Rfd8 {[%clk 0:03:44]} 18. Nd4
{[%clk 0:03:45.1]} 18... Nxd4 {[%clk 0:03:31.4]} 19. cxd4 {[%clk 0:03:44]} 19...
b5 {[%clk 0:03:24.4]} 20. Rf3 {[%clk 0:03:28.8]} 20... Qa4 {[%clk 0:03:09.6]}
21. Rh3 {[%clk 0:03:26.1]} 21... Qxd4+ {[%clk 0:03:04.4]} 22. Kh1 {[%clk
0:03:19]} 22... g6 {[%clk 0:03:01.9]} 23. Rxh7 {[%clk 0:02:47.7]} 23... Bf5
{[%clk 0:02:59.9]} 24. Rh3 {[%clk 0:01:58.9]} 24... Bxh3 {[%clk 0:02:57.7]} 25.
gxh3 {[%clk 0:01:58.1]} 25... Rac8 {[%clk 0:02:44.1]} 26. Qe2 {[%clk 0:01:54.9]}
26... Qxf4 {[%clk 0:02:41.4]} 27. Qg2 {[%clk 0:01:49.7]} 27... Qg5 {[%clk
0:02:37.7]} 28. Qf3 {[%clk 0:01:46.2]} 28... Qxe5 {[%clk 0:02:30.5]} 29. Rg1
{[%clk 0:01:44.3]} 29... Qg7 {[%clk 0:02:18]} 30. Qe2 {[%clk 0:01:29.7]} 30...
Bc5 {[%clk 0:02:12.6]} 31. Rg4 {[%clk 0:01:24.1]} 31... Qa1+ {[%clk 0:02:07.2]}
32. Kg2 {[%clk 0:01:21.7]} 32... Qg1+ {[%clk 0:02:01.8]} 33. Kf3 {[%clk
0:01:20.8]} 33... Qh1+ {[%clk 0:01:58.1]} 34. Kg3 {[%clk 0:01:18.4]} 34... Re8
{[%clk 0:01:53.9]} 35. Qc2 {[%clk 0:01:14.7]} 35... Bd6+ {[%clk 0:01:52.4]} 36.
Kh4 {[%clk 0:01:13.2]} 36... Qe1+ {[%clk 0:01:49.4]} 37. Kg5 {[%clk 0:01:10.3]}
37... Qe7+ {[%clk 0:01:44.1]} 38. Kh6 {[%clk 0:01:07.3]} 38... Qe3+ {[%clk
0:01:32.8]} 39. Rg5 {[%clk 0:01:01.5]} 39... Bf8# {[%clk 0:01:31.7]} 0-1

[Event "Live Chess"]
[Site "Chess.com"]
[Date "2024.06.02"]
[Round "-"]
[White "MaksymYurii"]
[Black "StoreySniper"]
[Result "0-1"]
[WhiteElo "1000"]
[BlackElo "2515"]
[TimeControl "300"]
[EndTime "2:20:13 PDT"]
[Termination "StoreySniper won by checkmate"]

1. e4 {[%clk 0:04:56.6]} 1... g6 {[%clk 0:04:59]} 2. Nf3 {[%clk 0:04:55.7]} 2...
Bg7 {[%clk 0:04:58.7]} 3. Bc4 {[%clk 0:04:54.8]} 3... c5 {[%clk 0:04:58]} 4. h4
{[%clk 0:04:42.2]} 4... Nc6 {[%clk 0:04:52.5]} 5. h5 {[%clk 0:04:40.8]} 5... e6
{[%clk 0:04:51.5]} 6. hxg6 {[%clk 0:04:36.9]} 6... hxg6 {[%clk 0:04:50.3]} 7.
Rxh8 {[%clk 0:04:34.8]} 7... Bxh8 {[%clk 0:04:50.2]} 8. Nc3 {[%clk 0:04:28.3]}
8... Nge7 {[%clk 0:04:48]} 9. Ng5 {[%clk 0:04:14.6]} 9... d5 {[%clk 0:04:39.5]}
10. exd5 {[%clk 0:04:12.2]} 10... exd5 {[%clk 0:04:37.8]} 11. Bb5 {[%clk
0:04:09.6]} 11... Nf5 {[%clk 0:04:26.2]} 12. Bxc6+ {[%clk 0:04:04.2]} 12... bxc6
{[%clk 0:04:24.5]} 13. Qe2+ {[%clk 0:04:02.5]} 13... Qe7 {[%clk 0:04:07.8]} 14.
Qxe7+ {[%clk 0:04:00.1]} 14... Kxe7 {[%clk 0:04:06.8]} 15. d3 {[%clk 0:03:55.1]}
15... Rb8 {[%clk 0:03:58.8]} 16. Nf3 {[%clk 0:03:49.7]} 16... Ba6 {[%clk
0:03:47.6]} 17. Bg5+ {[%clk 0:03:39.7]} 17... f6 {[%clk 0:03:42.3]} 18. Bf4
{[%clk 0:03:34.5]} 18... Rxb2 {[%clk 0:03:36.7]} 19. Na4 {[%clk 0:03:22.3]}
19... Rxc2 {[%clk 0:03:30.6]} 20. d4 {[%clk 0:03:06.7]} 20... Nxd4 {[%clk
0:03:22.7]} 21. Nxd4 {[%clk 0:02:56.3]} 21... cxd4 {[%clk 0:03:21.7]} 22. Rd1
{[%clk 0:02:50.5]} 22... Re2+ {[%clk 0:03:18.8]} 23. Kf1 {[%clk 0:02:48.6]}
23... Re4+ {[%clk 0:03:17.8]} 24. Kg1 {[%clk 0:02:44.7]} 24... Rxf4 {[%clk
0:03:16.8]} 25. Nc5 {[%clk 0:02:37.1]} 25... Bc4 {[%clk 0:03:09]} 26. a4 {[%clk
0:02:32.1]} 26... Rf5 {[%clk 0:02:57.2]} 27. Rxd4 {[%clk 0:02:25.5]} 27... Kd6
{[%clk 0:02:53.1]} 28. Nb7+ {[%clk 0:02:19]} 28... Kc7 {[%clk 0:02:51.8]} 29.
Na5 {[%clk 0:02:17.3]} 29... Re5 {[%clk 0:02:46.9]} 30. Nxc4 {[%clk 0:02:10.7]}
30... dxc4 {[%clk 0:02:45.6]} 31. Rxc4 {[%clk 0:02:09]} 31... f5 {[%clk
0:02:42]} 32. g3 {[%clk 0:02:03.3]} 32... Bf6 {[%clk 0:02:40.5]} 33. Kg2 {[%clk
0:01:59.5]} 33... c5 {[%clk 0:02:38.5]} 34. a5 {[%clk 0:01:56.4]} 34... Rd5
{[%clk 0:02:35.8]} 35. Kf3 {[%clk 0:01:51]} 35... Bd4 {[%clk 0:02:31.4]} 36. g4
{[%clk 0:01:42.8]} 36... fxg4+ {[%clk 0:02:29]} 37. Kxg4 {[%clk 0:01:41.8]}
37... Bxf2 {[%clk 0:02:27.4]} 38. Kf4 {[%clk 0:01:38.3]} 38... Bd4 {[%clk
0:02:25.6]} 39. Kg4 {[%clk 0:01:36.7]} 39... Rf5 {[%clk 0:02:22.9]} 40. Kh4
{[%clk 0:01:26.2]} 40... Kc6 {[%clk 0:02:20.5]} 41. Kg4 {[%clk 0:01:24.9]} 41...
Kb5 {[%clk 0:02:19.5]} 42. Rc1 {[%clk 0:01:19.2]} 42... c4 {[%clk 0:02:17.4]}
43. Rb1+ {[%clk 0:01:16]} 43... Kxa5 {[%clk 0:02:15.2]} 44. Rd1 {[%clk
0:01:15.1]} 44... Rd5 {[%clk 0:02:12.9]} 45. Rc1 {[%clk 0:01:08.8]} 45... c3
{[%clk 0:02:11.7]} 46. Ra1+ {[%clk 0:01:04.2]} 46... Kb4 {[%clk 0:02:10.4]} 47.
Rxa7 {[%clk 0:01:02.7]} 47... Bxa7 {[%clk 0:02:08.6]} 48. Kf3 {[%clk 0:01:00.1]}
48... c2 {[%clk 0:02:06.9]} 49. Ke4 {[%clk 0:00:59.5]} 49... Rd4+ {[%clk
0:02:05.5]} 50. Ke3 {[%clk 0:00:57.7]} 50... c1=Q+ {[%clk 0:02:04.5]} 51. Ke2
{[%clk 0:00:55.8]} 51... Qd2+ {[%clk 0:02:01.9]} 52. Kf3 {[%clk 0:00:54.4]}
52... Rf4+ {[%clk 0:02:01.1]} 53. Kg3 {[%clk 0:00:52.5]} 53... Qf2+ {[%clk
0:02:00.3]} 54. Kh3 {[%clk 0:00:50.3]} 54... Rh4# {[%clk 0:02:00.2]} 0-1

[Event "Live Chess"]
[Site "Chess.com"]
[Date "2024.06.02"]
[Round "-"]
[White "Pandreq"]
[Black "blunderabit"]
[Result "1-0"]
[WhiteElo "1210"]
[BlackElo "1758"]
[TimeControl "300"]
[EndTime "2:20:23 PDT"]
[Termination "Pandreq won on time"]

1. d4 {[%clk 0:04:57]} 1... Nf6 {[%clk 0:04:56.8]} 2. c4 {[%clk 0:04:56.5]} 2...
e6 {[%clk 0:04:55.4]} 3. Nc3 {[%clk 0:04:56]} 3... Bb4 {[%clk 0:04:53.5]} 4. a3
{[%clk 0:04:55.3]} 4... Bxc3+ {[%clk 0:04:52.2]} 5. bxc3 {[%clk 0:04:55.2]} 5...
b6 {[%clk 0:04:45.8]} 6. Nf3 {[%clk 0:04:54.2]} 6... Nc6 {[%clk 0:04:42]} 7. e3
{[%clk 0:04:53.3]} 7... Ba6 {[%clk 0:04:40.5]} 8. Bd2 {[%clk 0:04:47]} 8... Na5
{[%clk 0:04:37.6]} 9. Qa4 {[%clk 0:04:39.8]} 9... O-O {[%clk 0:04:34.7]} 10. Be2
{[%clk 0:04:28.7]} 10... d6 {[%clk 0:04:23.7]} 11. O-O {[%clk 0:04:26.9]} 11...
Qe8 {[%clk 0:04:19.3]} 12. Qd1 {[%clk 0:04:01.4]} 12... Bxc4 {[%clk 0:04:15.4]}
13. Bxc4 {[%clk 0:03:59.7]} 13... Nxc4 {[%clk 0:04:13.9]} 14. Qb3 {[%clk
0:03:48.4]} 14... Qc6 {[%clk 0:04:02.7]} 15. Bc1 {[%clk 0:03:42.9]} 15... Ne4
{[%clk 0:03:52.2]} 16. Rd1 {[%clk 0:03:35.2]} 16... f5 {[%clk 0:03:45.9]} 17.
Nd2 {[%clk 0:03:31]} 17... Nexd2 {[%clk 0:03:35.1]} 18. Bxd2 {[%clk 0:03:29.4]}
18... Rf6 {[%clk 0:03:32.2]} 19. f3 {[%clk 0:03:11.1]} 19... Rg6 {[%clk
0:03:29]} 20. Kh1 {[%clk 0:02:47.6]} 20... h5 {[%clk 0:03:06.5]} 21. Ra2 {[%clk
0:02:46]} 21... h4 {[%clk 0:03:03.5]} 22. h3 {[%clk 0:02:42.6]} 22... Nxd2
{[%clk 0:02:47.3]} 23. Rdxd2 {[%clk 0:02:39.5]} 23... Rg3 {[%clk 0:02:45.2]} 24.
Qxe6+ {[%clk 0:02:35.7]} 24... Kh8 {[%clk 0:02:43]} 25. Qxf5 {[%clk 0:02:30.8]}
25... d5 {[%clk 0:02:32.7]} 26. Qh5+ {[%clk 0:02:22.4]} 26... Qh6 {[%clk
0:02:28.9]} 27. Qxh6+ {[%clk 0:02:19.8]} 27... gxh6 {[%clk 0:02:26.5]} 28. Rac2
{[%clk 0:02:16.8]} 28... b5 {[%clk 0:02:17.7]} 29. e4 {[%clk 0:02:06.8]} 29...
dxe4 {[%clk 0:02:06]} 30. fxe4 {[%clk 0:02:05.4]} 30... Rf8 {[%clk 0:02:02.9]}
31. Rc1 {[%clk 0:01:55.1]} 31... c6 {[%clk 0:01:33.2]} 32. Re2 {[%clk
0:01:47.8]} 32... Re8 {[%clk 0:01:13.7]} 33. e5 {[%clk 0:01:45.9]} 33... Re6
{[%clk 0:01:12.1]} 34. Rcc2 {[%clk 0:01:38.1]} 34... Kg7 {[%clk 0:01:06.8]} 35.
Rf2 {[%clk 0:01:29.2]} 35... Reg6 {[%clk 0:00:50.4]} 36. Rf3 {[%clk 0:01:18.4]}
36... Rxf3 {[%clk 0:00:42.1]} 37. gxf3 {[%clk 0:01:17.5]} 37... Rg3 {[%clk
0:00:40.5]} 38. Rg2 {[%clk 0:01:01.4]} 38... h5 {[%clk 0:00:33.6]} 39. Kh2
{[%clk 0:00:53.5]} 39... a5 {[%clk 0:00:09.2]} 40. Rxg3+ {[%clk 0:00:49.9]}
40... hxg3+ {[%clk 0:00:07.2]} 41. Kxg3 {[%clk 0:00:49.3]} 41... Kf7 {[%clk
0:00:06.2]} 42. Kh4 {[%clk 0:00:47.9]} 42... Ke6 {[%clk 0:00:03.7]} 43. Kxh5
{[%clk 0:00:46.9]} 43... Kd5 {[%clk 0:00:02.4]} 44. Kg5 {[%clk 0:00:45.6]} 1-0

[Event "Live Chess"]
[Site "Chess.com"]
[Date "2024.06.02"]
[Round "-"]
[White "LL220284LL"]
[Black "DavrosLight"]
[Result "1-0"]
[WhiteElo "2506"]
[BlackElo "802"]
[TimeControl "300"]
[EndTime "2:20:48 PDT"]
[Termination "LL220284LL won by checkmate"]

1. b3 {[%clk 0:04:58]} 1... Nc6 {[%clk 0:04:56]} 2. Bb2 {[%clk 0:04:56.4]} 2...
e5 {[%clk 0:04:55.1]} 3. g3 {[%clk 0:04:55.1]} 3... d5 {[%clk 0:04:53.7]} 4. Bg2
{[%clk 0:04:54.1]} 4... Nf6 {[%clk 0:04:51.2]} 5. d3 {[%clk 0:04:52.8]} 5... Bd6
{[%clk 0:04:48.8]} 6. Nf3 {[%clk 0:04:51.7]} 6... Be6 {[%clk 0:04:47.1]} 7. O-O
{[%clk 0:04:50.5]} 7... Qe7 {[%clk 0:04:39.6]} 8. Nbd2 {[%clk 0:04:48.9]} 8...
O-O-O {[%clk 0:04:37.8]} 9. a3 {[%clk 0:04:44.3]} 9... d4 {[%clk 0:04:34.9]} 10.
b4 {[%clk 0:04:42.7]} 10... a6 {[%clk 0:04:32.9]} 11. Nc4 {[%clk 0:04:40.1]}
11... Bxc4 {[%clk 0:04:26.3]} 12. dxc4 {[%clk 0:04:40]} 12... Rhe8 {[%clk
0:04:11.8]} 13. c5 {[%clk 0:04:34.7]} 13... Bxc5 {[%clk 0:04:04.8]} 14. bxc5
{[%clk 0:04:34.6]} 14... Qxc5 {[%clk 0:04:02]} 15. Nd2 {[%clk 0:04:16.5]} 15...
b5 {[%clk 0:03:57]} 16. a4 {[%clk 0:04:13.3]} 16... b4 {[%clk 0:03:50.2]} 17.
Nb3 {[%clk 0:04:09.7]} 17... Qd6 {[%clk 0:03:30.3]} 18. Qd3 {[%clk 0:04:07.5]}
18... Kb7 {[%clk 0:03:20.6]} 19. Na5+ {[%clk 0:04:06.2]} 19... Ka7 {[%clk
0:03:12.4]} 20. Nxc6+ {[%clk 0:04:05.1]} 20... Kb7 {[%clk 0:02:58.7]} 21. Nxd8+
{[%clk 0:04:03.9]} 21... Kc8 {[%clk 0:02:53.6]} 22. Nc6 {[%clk 0:03:59.6]} 22...
h6 {[%clk 0:02:32.1]} 23. Qxa6+ {[%clk 0:03:58.4]} 23... Kd7 {[%clk 0:02:29.3]}
24. Qb5 {[%clk 0:03:55.8]} 24... Ke6 {[%clk 0:02:07.6]} 25. Nxb4 {[%clk
0:03:50.5]} 25... c5 {[%clk 0:01:59.8]} 26. Qc4+ {[%clk 0:03:46.8]} 26... Kd7
{[%clk 0:01:49.2]} 27. Nd3 {[%clk 0:03:45.5]} 27... Qb6 {[%clk 0:01:24.9]} 28.
Nxc5+ {[%clk 0:03:43.7]} 28... Ke7 {[%clk 0:01:14.2]} 29. Ba3 {[%clk 0:03:42]}
29... Kd8 {[%clk 0:00:48.4]} 30. Rab1 {[%clk 0:03:38.3]} 30... Qc7 {[%clk
0:00:38.6]} 31. Nb7+ {[%clk 0:03:35.6]} 31... Kc8 {[%clk 0:00:31.2]} 32. Nd6+
{[%clk 0:03:34.4]} 32... Kd7 {[%clk 0:00:23.1]} 33. Bh3+ {[%clk 0:03:28.7]}
33... Kd8 {[%clk 0:00:14.1]} 34. Nxf7+ {[%clk 0:03:27.4]} 34... Qxf7 {[%clk
0:00:09.7]} 35. Rb8# {[%clk 0:03:27.3]} 1-0

[Event "Live Chess"]
[Site "Chess.com"]
[Date "2024.06.02"]
[Round "-"]
[White "AlanBstard10"]
[Black "booktrunk"]
[Result "1/2-1/2"]
[WhiteElo "1234"]
[BlackElo "1504"]
[TimeControl "300"]
[EndTime "2:20:55 PDT"]
[Termination "Game drawn by agreement"]

1. b4 {[%clk 0:04:39]} 1... e6 {[%clk 0:04:58.3]} 2. Bb2 {[%clk 0:04:20.5]} 2...
f6 {[%clk 0:04:55.6]} 3. a3 {[%clk 0:04:18.3]} 3... a5 {[%clk 0:04:52.6]} 4. c3
{[%clk 0:04:14.6]} 4... axb4 {[%clk 0:04:51.3]} 5. axb4 {[%clk 0:04:13.6]} 5...
Rxa1 {[%clk 0:04:49.2]} 6. Bxa1 {[%clk 0:04:13.1]} 6... b6 {[%clk 0:04:47]} 7.
e3 {[%clk 0:04:11.1]} 7... Bb7 {[%clk 0:04:45.5]} 8. Nf3 {[%clk 0:04:07.1]} 8...
Nc6 {[%clk 0:04:43.2]} 9. Be2 {[%clk 0:04:05.3]} 9... Nge7 {[%clk 0:04:39.3]}
10. O-O {[%clk 0:04:04.1]} 10... Nd5 {[%clk 0:04:38]} 11. Bb2 {[%clk 0:03:56.1]}
11... Be7 {[%clk 0:04:35.2]} 12. Nd4 {[%clk 0:03:46.4]} 12... Nxd4 {[%clk
0:04:32.4]} 13. exd4 {[%clk 0:03:43.3]} 13... O-O {[%clk 0:04:27.9]} 14. Bf3
{[%clk 0:03:30.9]} 14... c6 {[%clk 0:04:23.9]} 15. Bxd5 {[%clk 0:03:29.2]} 15...
cxd5 {[%clk 0:04:21.3]} 16. d3 {[%clk 0:03:22.8]} 16... f5 {[%clk 0:04:19.3]}
17. Nd2 {[%clk 0:03:21.6]} 17... Bg5 {[%clk 0:04:17.1]} 18. Nf3 {[%clk
0:03:19.3]} 18... Bh6 {[%clk 0:04:14.9]} 19. Ne5 {[%clk 0:03:13]} 19... d6
{[%clk 0:04:12.1]} 20. Nf3 {[%clk 0:03:07.8]} 20... g5 {[%clk 0:04:09.3]} 21.
Bc1 {[%clk 0:03:06.2]} 21... f4 {[%clk 0:04:00.1]} 22. Nd2 {[%clk 0:02:58]}
22... g4 {[%clk 0:03:57.7]} 23. Qxg4+ {[%clk 0:02:52.8]} 23... Kh8 {[%clk
0:03:54]} 24. Qxe6 {[%clk 0:02:37]} 1/2-1/2

[Event "Live Chess"]
[Site "Chess.com"]
[Date "2024.06.02"]
[Round "-"]
[White "Zhevzh1k7"]
[Black "elephantgerrald"]
[Result "1/2-1/2"]
[WhiteElo "1108"]
[BlackElo "856"]
[TimeControl "300"]
[EndTime "2:21:02 PDT"]
[Termination "Game drawn - insufficient material"]

1. e4 {[%clk 0:04:57.3]} 1... e5 {[%clk 0:04:58]} 2. Nf3 {[%clk 0:04:55.4]} 2...
Nc6 {[%clk 0:04:56.4]} 3. Bc4 {[%clk 0:04:54.5]} 3... Nf6 {[%clk 0:04:54.5]} 4.
Nc3 {[%clk 0:04:50.1]} 4... Bc5 {[%clk 0:04:52.8]} 5. O-O {[%clk 0:04:47.1]}
5... O-O {[%clk 0:04:51.2]} 6. a3 {[%clk 0:04:42.5]} 6... h6 {[%clk 0:04:48.7]}
7. h3 {[%clk 0:04:41.3]} 7... d6 {[%clk 0:04:46]} 8. b4 {[%clk 0:04:40.1]} 8...
Bd4 {[%clk 0:04:43.4]} 9. Nxd4 {[%clk 0:04:38.4]} 9... exd4 {[%clk 0:04:42]} 10.
Nb5 {[%clk 0:04:17.6]} 10... a6 {[%clk 0:04:29.9]} 11. e5 {[%clk 0:04:16.3]}
11... dxe5 {[%clk 0:04:23.6]} 12. a4 {[%clk 0:04:00]} 12... axb5 {[%clk
0:04:19.1]} 13. Bxb5 {[%clk 0:03:55.5]} 13... Nxb4 {[%clk 0:04:15.7]} 14. Ba3
{[%clk 0:03:53.9]} 14... c5 {[%clk 0:04:09.8]} 15. c3 {[%clk 0:03:47.2]} 15...
dxc3 {[%clk 0:04:08.2]} 16. dxc3 {[%clk 0:03:46.2]} 16... Qxd1 {[%clk
0:04:06.1]} 17. Rfxd1 {[%clk 0:03:44.5]} 17... Nc2 {[%clk 0:04:03.6]} 18. Ra2
{[%clk 0:03:35.4]} 18... Nxa3 {[%clk 0:04:01.4]} 19. Rxa3 {[%clk 0:03:33.2]}
19... Ne4 {[%clk 0:03:45.4]} 20. Rd5 {[%clk 0:03:22.4]} 20... Nd6 {[%clk
0:03:24]} 21. Rxc5 {[%clk 0:03:17]} 21... Nxb5 {[%clk 0:03:19.4]} 22. Rxb5
{[%clk 0:03:15.9]} 22... Bd7 {[%clk 0:03:13.8]} 23. Rxb7 {[%clk 0:03:08.5]}
23... Bxa4 {[%clk 0:03:11.1]} 24. Rb2 {[%clk 0:02:57.1]} 24... Bc6 {[%clk
0:02:56.6]} 25. Rab3 {[%clk 0:02:53.5]} 25... Ra1+ {[%clk 0:02:51]} 26. Kh2
{[%clk 0:02:50.2]} 26... Kh7 {[%clk 0:02:43.5]} 27. Rb6 {[%clk 0:02:46.5]} 27...
Be4 {[%clk 0:02:40.1]} 28. Re2 {[%clk 0:02:42.6]} 28... Ra4 {[%clk 0:02:28.5]}
29. f3 {[%clk 0:02:37.2]} 29... Bd3 {[%clk 0:02:21.9]} 30. Rxe5 {[%clk
0:02:33.8]} 30... f6 {[%clk 0:02:20.2]} 31. Re3 {[%clk 0:02:29.6]} 31... Bc4
{[%clk 0:02:13.8]} 32. Re4 {[%clk 0:02:21.9]} 32... Rc8 {[%clk 0:01:59.4]} 33.
Re7 {[%clk 0:02:04.5]} 33... Ra6 {[%clk 0:01:53.5]} 34. Rbb7 {[%clk 0:01:58.3]}
34... Bd5 {[%clk 0:01:47.8]} 35. Rxg7+ {[%clk 0:01:56]} 35... Kh8 {[%clk
0:01:43.5]} 36. Rbe7 {[%clk 0:01:36.8]} 36... Re6 {[%clk 0:01:28.7]} 37. Ra7
{[%clk 0:01:17.2]} 37... Rxc3 {[%clk 0:01:17.4]} 38. Rgd7 {[%clk 0:01:14.7]}
38... Bc6 {[%clk 0:01:08.5]} 39. Ra8+ {[%clk 0:01:09.7]} 39... Bxa8 {[%clk
0:01:06.7]} 40. Rd8+ {[%clk 0:01:07.5]} 40... Kg7 {[%clk 0:01:05.4]} 41. Rxa8
{[%clk 0:01:05.8]} 41... f5 {[%clk 0:01:03.9]} 42. Ra7+ {[%clk 0:01:04.2]} 42...
Kf6 {[%clk 0:01:02.3]} 43. Ra4 {[%clk 0:01:01.2]} 43... h5 {[%clk 0:00:59.2]}
44. Kg3 {[%clk 0:00:58.5]} 44... Re8 {[%clk 0:00:56.8]} 45. Ra6+ {[%clk
0:00:55.1]} 45... Ke7 {[%clk 0:00:55.3]} 46. Ra7+ {[%clk 0:00:53.2]} 46... Kd6
{[%clk 0:00:51.6]} 47. Ra6+ {[%clk 0:00:51.5]} 47... Kc7 {[%clk 0:00:50.2]} 48.
Ra4 {[%clk 0:00:45.7]} 48... Rg8+ {[%clk 0:00:48.1]} 49. Kf4 {[%clk 0:00:40.6]}
49... Rc5 {[%clk 0:00:42.5]} 50. Ra7+ {[%clk 0:00:36.8]} 50... Kb6 {[%clk
0:00:40.6]} 51. Rf7 {[%clk 0:00:33.9]} 51... Rc4+ {[%clk 0:00:37.3]} 52. Kxf5
{[%clk 0:00:30.1]} 52... Rc5+ {[%clk 0:00:34.4]} 53. Ke4 {[%clk 0:00:24.5]}
53... Rxg2 {[%clk 0:00:30.9]} 54. Rf6+ {[%clk 0:00:22.5]} 54... Kb5 {[%clk
0:00:29.1]} 55. Rh6 {[%clk 0:00:19.4]} 55... Re2+ {[%clk 0:00:27.1]} 56. Kf4
{[%clk 0:00:18.3]} 56... Rc4+ {[%clk 0:00:21.7]} 57. Kg5 {[%clk 0:00:17.7]}
57... Re5+ {[%clk 0:00:19.3]} 58. Kf6 {[%clk 0:00:16.2]} 58... Rcc5 {[%clk
0:00:17.4]} 59. f4 {[%clk 0:00:13.9]} 59... Rf5+ {[%clk 0:00:16.6]} 60. Kg6
{[%clk 0:00:12.7]} 60... Rxf4 {[%clk 0:00:14.7]} 61. Rxh5 {[%clk 0:00:12.3]}
61... Rxh5 {[%clk 0:00:13.6]} 62. Kxh5 {[%clk 0:00:12.2]} 62... Rf3 {[%clk
0:00:12.8]} 63. h4 {[%clk 0:00:10.9]} 63... Rf1 {[%clk 0:00:12.7]} 64. Kg5
{[%clk 0:00:10.8]} 64... Re1 {[%clk 0:00:11.9]} 65. h5 {[%clk 0:00:10.7]} 65...
Kc6 {[%clk 0:00:11.1]} 66. Kh6 {[%clk 0:00:10.3]} 66... Re8 {[%clk 0:00:10.9]}
67. Kg6 {[%clk 0:00:10.1]} 67... Kd7 {[%clk 0:00:10.4]} 68. h6 {[%clk 0:00:10]}
68... Ke7 {[%clk 0:00:09.7]} 69. Kg7 {[%clk 0:00:09.3]} 69... Rf8 {[%clk
0:00:04.9]} 70. h7 {[%clk 0:00:08.9]} 70... Rf7+ {[%clk 0:00:04.2]} 71. Kg8
{[%clk 0:00:07.9]} 71... Rxh7 {[%clk 0:00:03.6]} 72. Kxh7 {[%clk 0:00:07.8]}
1/2-1/2